fUSD/lending_fUSD_20240914
["ID","MTS","AMOUNT","RATE_DAILY","PERIOD"]
[338099697,1726277432035,-430.15118,0.000129,2]
[338099698,1726277432048,-747.5743,0.000129,2]
[338099699,1726277432059,-169.5838256,0.000129,2]
[338099701,1726277432068,-178.47357185,0.000129,2]
[338099703,1726277432078,-435.93874686,0.000129,2]
[338099705,1726277432088,-681.37642228,0.000129,2]
[338099708,1726277432099,-554.59291661,0.000129,2]
[338099710,1726277432109,-2987.43808359,0.00012907,2]
[338099712,1726277432121,-703.37788318,0.00012907,2]
[338099714,1726277432139,-871.8568502,0.00012907,2]
[338099715,1726277432151,-415.90926157,0.00012907,2]
[338099720,1726277437693,-1210.47927483,0.00012907,2]
[338099722,1726277437827,-310.24010705,0.00012907,2]
[338099723,1726277437841,-3912.37242861,0.00012907,2]
[338099724,1726277437854,-516.74727252,0.00012907,2]
[338099725,1726277437866,-275.96458678,0.00012907,2]
[338099726,1726277437961,-306.42367944,0.00012907,2]
[338100044,1726277441521,-487.32941366,0.00012907,2]
[338100433,1726277445752,-16494.62940824,0.00012907,2]
[338100437,1726277445761,-796.0,0.0001291,2]
[338100440,1726277445771,-430.15117,0.0001293,2]
[338100442,1726277445781,-160.10281567,0.00012973,2]
[338100444,1726277445792,-491.8074183,0.00012973,2]
[338100446,1726277445803,-501.97786434,0.00012973,2]
[338100448,1726277445814,-150.0,0.00012986,2]
[338100450,1726277445824,-150.0,0.00012986,2]
[338100452,1726277445835,-150.0,0.00012986,2]
[338100454,1726277445846,-150.0,0.00012986,2]
[338100456,1726277445856,-606.4449346,0.00012997,2]
[338100458,1726277445865,-3606.75437128,0.00012997,2]
[338100460,1726277445877,-1203.491268,0.00012997,2]
[338100462,1726277445892,-435.93874686,0.00012997,2]
[338100473,1726277446026,-975.0209216,0.00012997,2]
[338100476,1726277446037,-1907.9639463,0.00012997,2]
[338100485,1726277446165,-500.0,0.00012973,2]
[338100487,1726277446175,-962.62,0.00012997,2]
[338100949,1726277451639,175.65949733,6.781e-05,7]
[338102206,1726277478554,300.0,0.000124,4]
[338102207,1726277480662,600.0,0.000125,4]
[338102208,1726277482761,900.0,0.000126,4]
[338102212,1726277510807,156.16,0.00010959,2]
[338102215,1726277528267,161.5,0.00012565,2]
[338102218,1726277663770,227.74,0.00010587,2]
[338102219,1726277788403,737.6,0.00012407,2]
[338102220,1726277898552,250.0,0.00012336,2]
[338102221,1726277955578,185.01,0.00012308,2]
[338102222,1726278161880,158.45,0.00010959,2]
[338102223,1726278212547,226.07,0.00010384,2]
[338102224,1726278275475,7000.0,0.0001264,2]
[338102225,1726278319121,5000.0,0.0001264,2]
[338102226,1726278358946,2100.01147732,0.00012,2]
[338102227,1726278437461,500.0,0.0001331,30]
[338102228,1726278437796,500.0,0.0001331,30]
[338102229,1726278438658,500.0,0.0001331,30]
[338102230,1726278439032,500.0,0.0001331,30]
[338102231,1726278439373,500.0,0.0001331,30]
[338102232,1726278439715,500.0,0.0001331,30]
[338102233,1726278440082,500.0,0.0001331,30]
[338102234,1726278440943,500.0,0.0001331,30]
[338102235,1726278441290,627.49271104,0.0001331,30]
[338102236,1726278447109,250.0,0.00012315,2]
[338102237,1726278488232,1000.0,0.00012237,2]
[338102238,1726278539345,151.28,0.00012286,2]
[338102248,1726278631860,-226.07,0.00012648,2]
[338102249,1726278631870,-46.1146872,0.000128,2]
[338102250,1726278631881,-174.2141128,0.000128,2]
[338102251,1726278631891,-137.80688314,0.000128,2]
[338102252,1726278632018,-368.67861686,0.000128,2]
[338102253,1726278632027,-447.37717035,0.000128,2]
[338102258,1726278638056,-552.62282965,0.000128,2]
[338102259,1726278638065,-1000.0,0.000128,3]
[338102260,1726278638074,-727.60766,0.0001287,2]
[338102261,1726278638083,-191.4398,0.000129,2]
[338102262,1726278638092,-2500.0,0.000129,2]
[338102263,1726278638101,-324.27928718,0.000129,2]
[338102264,1726278638110,-1790.76505536,0.000129,2]
[338102265,1726278638119,-798.78528138,0.0001291,2]
[338102266,1726278638128,-324.35494134,0.00012973,2]
[338102267,1726278638137,-694.56225737,0.00012989,2]
[338102268,1726278638146,-172.45,0.0001299,2]
[338102269,1726278638155,-150.0,0.00012997,2]
[338102270,1726278638164,-184.08431664,0.00012997,2]
[338102271,1726278638173,-556.06335157,0.00012999,2]
[338102272,1726278638182,-500.0,0.00012999,2]
[338102273,1726278638191,-478.69483472,0.00012999,2]
[338102274,1726278638199,-274.91899362,0.00012999,2]
[338102275,1726278638208,-500.0,0.00012999,2]
[338102276,1726278638217,-299.15359176,0.00012999,2]
[338102277,1726278638225,-597.70138639,0.00012999,2]
[338102278,1726278638237,-37.57861361,0.00012999,2]
[338102279,1726278638246,-197.331,0.00012999,2]
[338102280,1726278638254,-2757.58269373,0.00013,2]
[338102281,1726278638265,-4007.59997,0.00013,2]
[338102282,1726278638279,-5124.74242063,0.00013,2]
[338102283,1726278638290,-2424.99999999,0.00013,2]
[338102284,1726278638301,-1055.46498925,0.00013,2]
[338102450,1726278640103,-5611.5908245,0.00013,2]
[338102452,1726278640115,-427.62928897,0.00013,2]
[338102454,1726278640126,-1296.90950671,0.00013,2]
[338102456,1726278640137,-462.07265659,0.00013,2]
[338102458,1726278640148,-907.91367986,0.00013,2]
[338102815,1726278643809,-5654.29719885,0.00013,2]
[338103022,1726278645886,-39536.69,0.00013,2]
[338103038,1726278645986,-980.18249376,0.00013,2]
[338103067,1726278646262,-4695.10008609,0.00013,2]
[338103069,1726278646272,-599.68748202,0.00013,2]
[338104237,1726278658911,160.72,0.00010959,2]
[338104705,1726278716792,221.92,0.00010641,2]
[338104706,1726278741132,1400.0,0.0001331,30]
[338104707,1726278741476,1400.0,0.0001331,30]
[338104708,1726278742363,1400.0,0.0001331,30]
[338104709,1726278742738,1400.0,0.0001331,30]
[338104710,1726278743111,1400.0,0.0001331,30]
[338104711,1726278743475,1400.0,0.0001331,30]
[338104712,1726278743855,1400.0,0.0001331,30]
[338104713,1726278744247,1400.0,0.0001331,30]
[338104714,1726278744585,1400.0,0.0001331,30]
[338104715,1726278744936,1400.0,0.0001331,30]
[338104716,1726278745257,1400.0,0.0001331,30]
[338104717,1726278745616,1400.0,0.0001331,30]
[338104718,1726278745969,1400.0,0.0001331,30]
[338104719,1726278746360,1800.0,0.0001331,30]
[338104720,1726278776181,604.4640721,0.00011164,2]
[338104721,1726278976685,250.0,0.00012055,2]
[338104722,1726279038792,299.46287472,0.00012624,2]
[338104723,1726279040123,700.0,0.0001331,30]
[338104724,1726279041045,700.0,0.0001331,30]
[338104725,1726279041414,700.0,0.0001331,30]
[338104726,1726279041730,700.0,0.0001331,30]
[338104727,1726279042068,700.0,0.0001331,30]
[338104728,1726279042405,700.0,0.0001331,30]
[338104729,1726279042765,700.0,0.0001331,30]
[338104730,1726279043107,700.0,0.0001331,30]
[338104731,1726279043484,700.0,0.0001331,30]
[338104732,1726279043823,700.0,0.0001331,30]
[338104733,1726279044310,700.0,0.0001331,30]
[338104734,1726279045096,700.0,0.0001331,30]
[338104735,1726279045438,1200.0,0.0001331,30]
[338104736,1726279051772,336.11,0.00012039,2]
[338104737,1726279082096,200.0,0.00012039,2]
[338104738,1726279110178,23900.0,0.00012044,2]
[338104739,1726279143535,214.69004336,0.00011604,2]
[338104740,1726279252000,156.3,0.00010959,2]
[338104741,1726279282904,227.89,0.00010121,2]
[338104742,1726279283133,227.89,0.00012385,2]
[338104743,1726279336090,500.0,0.0001331,30]
[338104744,1726279336431,500.0,0.0001331,30]
[338104745,1726279336941,500.0,0.0001331,30]
[338104746,1726279337305,500.0,0.0001331,30]
[338104747,1726279337661,900.0,0.0001331,30]
[338104748,1726279474681,250.0,0.00012033,2]
[338104749,1726279503808,150.0,0.00011688,2]
[338104750,1726279504467,150.0,0.0001174,2]
[338104751,1726279504791,150.0,0.00011792,2]
[338104752,1726279505113,150.0,0.00011844,2]
[338104753,1726279505434,150.0,0.00011895,2]
[338104754,1726279505797,150.0,0.00011947,2]
[338104755,1726279506112,150.0,0.00011999,2]
[338104756,1726279506454,150.0,0.00012051,2]
[338104757,1726279506802,150.0,0.00012103,2]
[338104758,1726279507119,150.0,0.00012155,2]
[338104759,1726279507886,150.0,0.00012207,2]
[338104760,1726279508219,150.0,0.00012259,2]
[338104761,1726279508629,150.0,0.00012311,2]
[338104762,1726279508933,150.0,0.00012363,2]
[338104763,1726279509691,150.0,0.00012415,2]
[338104764,1726279510033,150.0,0.00012467,2]
[338104765,1726279510354,150.0,0.00012519,2]
[338104766,1726279510692,150.0,0.00012571,2]
[338104767,1726279511033,150.0,0.00012623,2]
[338104768,1726279515453,157.76822026,0.00011688,2]
[338104769,1726279522361,159.75566384,0.00011688,2]
[338104770,1726279532219,152.66150334,0.00011688,2]
[338104771,1726279632983,220.0,0.00013154,30]
[338104772,1726279640812,1700.0,0.0001331,30]
[338104773,1726279641205,1700.0,0.0001331,30]
[338104774,1726279641574,1700.0,0.0001331,30]
[338104775,1726279641919,1700.0,0.0001331,30]
[338104776,1726279642816,1700.0,0.0001331,30]
[338104777,1726279643160,1700.0,0.0001331,30]
[338104778,1726279643516,1700.0,0.0001331,30]
[338104779,1726279643889,1700.0,0.0001331,30]
[338104780,1726279644247,1700.0,0.0001331,30]
[338104781,1726279644575,1700.0,0.0001331,30]
[338104782,1726279644917,1700.0,0.0001331,30]
[338104783,1726279645290,1700.0,0.0001331,30]
[338104784,1726279645627,1700.0,0.0001331,30]
[338104785,1726279646020,2928.03974728,0.0001331,30]
[338104786,1726279675382,840.0,0.00011974,2]
[338104787,1726279767593,212.95,0.00010053,2]
[338104788,1726279767839,212.95,0.00012317,2]
[338104789,1726279775970,152.13,0.00010959,2]
[338104795,1726279832029,-150.0,0.00012675,2]
[338104796,1726279832038,-150.0,0.00012727,2]
[338104798,1726279832047,-150.0,0.00012779,2]
[338104800,1726279832056,-150.0,0.00012799,2]
[338104801,1726279832065,-300.0,0.00012799,2]
[338104802,1726279832075,-1000.0,0.000128,2]
[338104803,1726279832084,-74.8225,0.000128,3]
[338104804,1726279832096,-925.1775,0.000128,3]
[338104805,1726279832104,-144.44068392,0.000128,4]
[338104806,1726279832196,-567.14,0.000128,4]
[338104807,1726279832207,-288.41931608,0.000128,4]
[338104808,1726279832217,-1000.0,0.000128,5]
[338104809,1726279832226,-1000.0,0.000128,6]
[338104810,1726279832235,-128.26565957,0.000128,2]
[338104811,1726279832246,-638.31314046,0.000128,2]
[338104812,1726279832255,-2388.58685954,0.000128,2]
[338104813,1726279832266,-395.82884046,0.000128,2]
[338104814,1726279832276,-146.66964013,0.000128,2]
[338104818,1726279832469,-792.5901174,0.000128,2]
[338104819,1726279832480,-261.39657885,0.000128,2]
[338104820,1726279832491,-3831.16040795,0.000128,2]
[338104821,1726279832517,-541.0092199,0.000128,2]
[338104822,1726279832528,-5045.81686439,0.000128,2]
[338104823,1726279832539,-2613.10872722,0.000128,2]
[338104824,1726279832550,-542.67878054,0.000128,2]
[338104825,1726279832561,-598.97184433,0.000128,2]
[338104827,1726279838104,-1550.20481112,0.000128,2]
[338104829,1726279838267,-5841.00021091,0.000128,2]
[338104830,1726279838279,-8161.55232809,0.000128,2]
[338104831,1726279838290,-990.63368508,0.000128,2]
[338104832,1726279838303,-32434.19348409,0.000128,2]
[338104833,1726279838312,-182.90739573,0.000128,2]
[338104834,1726279838322,-4053.9113,0.000128,2]
[338104835,1726279838331,-150.0,0.0001283,2]
[338104836,1726279838341,-499.99,0.0001283,2]
[338104837,1726279838351,-466.20515,0.0001287,2]
[338104838,1726279838360,-159.36873505,0.00012873,2]
[338104839,1726279838370,-501.70765525,0.00012873,2]
[338104840,1726279838379,-500.0,0.00012873,2]
[338104841,1726279838388,-500.0,0.00012873,2]
[338104842,1726279838398,-150.0,0.00012882,2]
[338104843,1726279838407,-1001.6098459,0.00012899,2]
[338104844,1726279838416,-11709.2563,0.000129,2]
[338104845,1726279838426,-189531.3316,0.000129,2]
[338104846,1726279838435,-16993.245089,0.000129,2]
[338104847,1726279838445,-541.12,0.000129,2]
[338104848,1726279838455,-426.02,0.000129,2]
[338104849,1726279838464,-798.39,0.000129,2]
[338104850,1726279838474,-301.72,0.000129,2]
[338104851,1726279838483,-301.81,0.000129,2]
[338104852,1726279838492,-162.07,0.000129,2]
[338104853,1726279838501,-721.06,0.000129,2]
[338104854,1726279838512,-300.94,0.000129,2]
[338104855,1726279838523,-302.27,0.000129,2]
[338104856,1726279838533,-301.15,0.000129,2]
[338104857,1726279838543,-302.8,0.000129,2]
[338104858,1726279838552,-203.02642611,0.000129,2]
[338104859,1726279838563,-2591.1515,0.000129,2]
[338104860,1726279838573,-166.87539553,0.000129,2]
[338104861,1726279838582,-315.84038651,0.000129,2]
[338104863,1726279838592,-177.29996296,0.000129,2]
[338104864,1726279838601,-712.13198209,0.000129,2]
[338104866,1726279838612,-946.38979843,0.000129,2]
[338104868,1726279838622,-150.0,0.00012934,2]
[338104870,1726279838632,-500.0,0.00012967,2]
[338104872,1726279838642,-243.49129108,0.00012967,2]
[338104874,1726279838651,-568.00120037,0.00012967,2]
[338104876,1726279838660,-10000.0,0.00012968,2]
[338104878,1726279838669,-500.0,0.00012973,2]
[338104880,1726279838678,-500.0,0.00012973,2]
[338104882,1726279838688,-171.09629399,0.00012986,2]
[338104884,1726279838697,-160.15,0.0001299,2]
[338104886,1726279838706,-589.568,0.00012997,2]
[338104887,1726279838715,-189.998,0.00012997,2]
[338104889,1726279838725,-558.7651933,0.00012999,2]
[338104891,1726279838734,-128139.54677149,0.00013,2]
[338104893,1726279838744,-849524.40434665,0.00013,2]
[338104896,1726279838763,-3200.81068033,0.00013,2]
[338104898,1726279838774,-5906.63080696,0.00013,2]
[338105017,1726279840119,-961.27203814,0.00012968,2]
[338105252,1726279842930,-3170.01195793,0.000128,2]
[338105255,1726279842952,-7836.95754207,0.000128,2]
[338105257,1726279842961,-3124.28013287,0.00012968,2]
[338105259,1726279842970,-185372.38228204,0.00013,2]
[338105261,1726279842981,-69584.52609615,0.00013,2]
[338105263,1726279842992,-1399.85886565,0.00013,2]
[338105265,1726279843003,-1439.07083368,0.00013,2]
[338105276,1726279843098,-78810.94375656,0.00013,2]
[338105279,1726279843119,-1025.24744927,0.00013,2]
[338105281,1726279843130,-1968.40098272,0.00013,2]
[338105283,1726279843142,-323.966194,0.00013,2]
[338105285,1726279843153,-105432.42269082,0.00013,2]
[338105287,1726279843164,-627.59413878,0.00013,2]
[338105311,1726279843388,-478.6711612,0.00013,2]
[338105314,1726279843400,-869.95370905,0.00013,2]
[338105393,1726279844171,-778.84,0.00013,2]
[338105582,1726279846205,-1439.63372143,0.00013,2]
[338105584,1726279846217,-190558.68334031,0.00013,2]
[338105587,1726279846228,-3588.91140924,0.00013,2]
[338105626,1726279846617,-45018.24408526,0.00013,2]
[338107044,1726279862410,400.0,0.000125,4]
[338107275,1726279864834,900.0,0.000126,4]
[338107354,1726279919649,214.69004336,0.00011604,2]
[338107355,1726279977929,250.0,0.00012149,2]
[338107356,1726280044612,484.00205041,0.00011164,2]
[338107358,1726280130393,151.28,0.00012153,2]
[338107359,1726280240767,600.0,0.0001331,30]
[338107360,1726280241083,600.0,0.0001331,30]
[338107361,1726280241448,600.0,0.0001331,30]
[338107362,1726280241781,600.0,0.0001331,30]
[338107363,1726280242119,600.0,0.0001331,30]
[338107364,1726280242471,600.0,0.0001331,30]
[338107365,1726280242836,600.0,0.0001331,30]
[338107366,1726280243182,600.0,0.0001331,30]
[338107367,1726280243540,600.0,0.0001331,30]
[338107368,1726280243941,600.0,0.0001331,30]
[338107369,1726280244442,600.0,0.0001331,30]
[338107370,1726280244796,600.0,0.0001331,30]
[338107371,1726280245169,600.0,0.0001331,30]
[338107372,1726280245512,799.88220545,0.0001331,30]
[338107373,1726280290491,191.65,0.00010132,2]
[338107374,1726280290706,191.65,0.00012396,2]
[338107375,1726280324644,1000.0,0.0001205,2]
[338107376,1726280403537,1050.0,0.00011,2]
[338107377,1726280441643,156.16,0.00010959,2]
[338107378,1726280498407,250.0,0.00012027,2]
[338107379,1726280654154,268.88,0.00012037,2]
[338107380,1726280697132,214.69004336,0.00011604,2]
[338107381,1726280712969,151.34882642,0.00011688,2]
[338107382,1726280756833,21341.14631333,6.94e-05,2]
[338107383,1726280832615,300.0,0.000124,4]
[338107384,1726280834725,700.0,0.000125,4]
[338107385,1726280836817,1100.0,0.000126,4]
[338107386,1726280877716,172.48,0.00010107,2]
[338107387,1726280878064,172.48,0.00012371,2]
[338107389,1726280886447,912.42800336,0.00012,2]
[338107392,1726280928059,15328.47435734,0.0001,2]
[338107393,1726280958190,153.77,9.614e-05,2]
[338107394,1726280982961,1000.0,0.00012018,2]
[338107401,1726281032363,-1005.0,0.000127,2]
[338107402,1726281032372,-5821.16476924,0.000127,2]
[338107403,1726281032381,-1500.0,0.000127,4]
[338107404,1726281032391,-150.0,0.00012799,2]
[338107405,1726281032399,-1654.37055656,0.000128,2]
[338107406,1726281032411,-340.28165674,0.000128,2]
[338107407,1726281032422,-655.60712406,0.000128,2]
[338107408,1726281032433,-440.57660707,0.000128,2]
[338107409,1726281032444,-16495.5973114,0.000128,2]
[338107410,1726281032453,-5046.0,0.000128,2]
[338107411,1726281032647,-1782.15462075,0.000128,2]
[338107412,1726281032658,-1900.0,0.000128,4]
[338107413,1726281032667,-1428.25327,0.0001287,2]
[338107414,1726281032679,-39506.9,0.00012899,2]
[338107415,1726281032689,-1000.0,0.00012899,2]
[338107416,1726281032698,-44408.35355569,0.000129,2]
[338107417,1726281032708,-548.45380096,0.000129,2]
[338107418,1726281032720,-1167.26,0.000129,2]
[338107419,1726281032731,-2617.89822273,0.000129,2]
[338107420,1726281032742,-263.55110555,0.000129,2]
[338107421,1726281032752,-2911.35661323,0.000129,2]
[338107422,1726281032765,-3834.18185265,0.000129,2]
[338107423,1726281038402,-2099.9999141,0.000129,2]
[338107424,1726281038413,-16040.23633509,0.000129,2]
[338107425,1726281038423,-376.9828,0.000129,2]
[338107426,1726281038432,-568.0738,0.000129,2]
[338107427,1726281038442,-7754.5162,0.000129,2]
[338107428,1726281038451,-4522.36413642,0.000129,2]
[338107429,1726281038523,-2977.63586358,0.000129,2]
[338107430,1726281038532,-300.0,0.000129,4]
[338107431,1726281038541,-167.84170969,0.000129,2]
[338107432,1726281038550,-337.73183285,0.000129,2]
[338107433,1726281038559,-166.33604351,0.000129,2]
[338107434,1726281038569,-1176.21229145,0.000129,2]
[338107435,1726281038579,-160.01948633,0.000129,2]
[338107436,1726281038588,-471.654,0.0001291,2]
[338107437,1726281038597,-151.998,0.0001291,2]
[338107438,1726281038607,-428.54,0.00012973,2]
[338107439,1726281038616,-163.19852327,0.00012973,2]
[338107440,1726281038626,-500.0,0.00012973,2]
[338107441,1726281038636,-503.57298303,0.00012973,2]
[338107442,1726281038646,-157.97,0.0001299,2]
[338107443,1726281038655,-2990.7159652,0.00012999,2]
[338107444,1726281038665,-297.95097601,0.00012999,2]
[338107445,1726281038675,-11869.59242682,0.00012999,2]
[338107446,1726281038687,-3636.594804,0.00012999,2]
[338107448,1726281038696,-27595.3328418,0.00012999,2]
[338107450,1726281038706,-741.1688762,0.00012999,2]
[338107452,1726281038715,-66541.63320672,0.00013,2]
[338107454,1726281038725,-664991.88210463,0.00013,2]
[338107456,1726281038735,-899097.12127991,0.00013,2]
[338107458,1726281038744,-279.52099758,0.00013,2]
[338107459,1726281038753,-832148.61090559,0.00013,2]
[338107642,1726281040532,-0.06953668,0.00013,2]
[338107905,1726281043282,-162675.11573486,0.00013,2]
[338107907,1726281043295,-28450.00000001,0.00013,2]
[338107939,1726281043567,-3903.71067323,0.00013,2]
[338107942,1726281043579,-17184.01704872,0.00013,2]
[338108195,1726281046401,-26571.00036613,0.00013,2]
[338108198,1726281046413,-1692.13433811,0.00013,2]
[338108200,1726281046425,-8748.37209295,0.00013,2]
[338108211,1726281046527,-288.45000355,0.00013,2]
[338108214,1726281046538,-933.17494973,0.00013,2]
[338108216,1726281046550,-617.64,0.00013,2]
[338109832,1726281071594,300.0,0.000125,4]
[338109833,1726281073880,600.0,0.000126,4]
[338109834,1726281141819,915.702304,0.00012636,2]
[338109835,1726281146307,250.0,0.00012139,2]
[338109836,1726281225519,200.02,0.00012033,2]
[338109840,1726281405256,170.93,0.00010119,2]
[338109841,1726281405654,170.93,0.00012383,2]
[338109842,1726281472953,214.69004336,0.00011604,2]
[338109843,1726281486234,200.0,0.00012035,2]
[338109844,1726281530129,200.70313762,0.00012035,2]
[338109845,1726281531869,10547.89,0.00012029,2]
[338109846,1726281635002,158.51,0.00010959,2]
[338109847,1726281676815,250.0,0.00012027,2]
[338109848,1726281740234,151.28,0.00012035,2]
[338109849,1726281904086,150.0,0.00012304,2]
[338109850,1726281942592,162.07,0.00010116,2]
[338109851,1726281943010,162.07,0.00012379,2]
[338109852,1726281984360,840.0,0.0001203,2]
[338109853,1726282033650,300.0,0.000125,4]
[338109854,1726282035744,700.0,0.000126,4]
[338109855,1726282146291,156.3,0.00010959,2]
[338109856,1726282205808,1050.0,0.00011,2]
[338109862,1726282232664,-1100.0,0.000127,4]
[338109864,1726282232674,-1500.0,0.000128,4]
[338109866,1726282232683,-1332.87973536,0.00012825,2]
[338109876,1726282238525,-328.445,0.00012825,2]
[338109877,1726282238536,-302.59,0.00012825,2]
[338109878,1726282238547,-2729.04564376,0.00012825,2]
[338109879,1726282238687,-5307.03962088,0.00012825,2]
[338109880,1726282238697,-10000.0,0.00012825,2]
[338109881,1726282238707,-6205.39441816,0.0001287,2]
[338109882,1726282238716,-388.5043,0.0001287,2]
[338109883,1726282238725,-150.0,0.00012877,2]
[338109884,1726282238734,-16839.58,0.00012899,2]
[338109885,1726282238743,-150.0,0.00012899,2]
[338109886,1726282238752,-503.921,0.000129,2]
[338109887,1726282238761,-159.409,0.000129,2]
[338109888,1726282238770,-1603.93915863,0.000129,2]
[338109889,1726282238779,-1900.0,0.000129,4]
[338109890,1726282238789,-1824.0,0.000129,2]
[338109891,1726282238798,-1882.33523391,0.000129,2]
[338109892,1726282238809,-337.73183285,0.000129,2]
[338109893,1726282238819,-167.84170969,0.000129,2]
[338109894,1726282238828,-784.14152762,0.000129,2]
[338109895,1726282238838,-510.12053839,0.00012973,2]
[338109896,1726282238848,-150.99,0.00012973,2]
[338109897,1726282238858,-157.25,0.0001299,2]
[338109898,1726282238869,-2996.9047129,0.00012995,2]
[338109899,1726282238878,-17459.49849637,0.00012995,2]
[338109900,1726282238889,-5281.71615763,0.00012995,2]
[338109901,1726282238898,-1257.9975104,0.00012995,2]
[338109902,1726282238907,-499.99,0.00012996,2]
[338109903,1726282238917,-32951.18,0.00012996,2]
[338109904,1726282238926,-500.0,0.00012999,2]
[338109905,1726282238935,-643.14740419,0.00012999,2]
[338109906,1726282238946,-17061.29275321,0.00013,2]
[338109907,1726282238960,-1948.67926551,0.00013,2]
[338110034,1726282240542,-263.60145394,0.00012825,2]
[338110036,1726282240552,-14474.65922913,0.00013,2]
[338110038,1726282240561,-123929.58547107,0.00013,2]
[338110177,1726282241882,-164158.61755268,0.00013,2]
[338110353,1726282243715,-263.73643697,0.00012825,2]
[338110667,1726282246780,-9736.26356303,0.00012825,2]
[338110669,1726282246789,-7585.67396267,0.00013,2]
[338111016,1726282250409,214.69004336,0.00011604,2]
[338111301,1726282253935,659.25,0.00010959,2]
[338112159,1726282263734,287.36,0.00012179,2]
[338112286,1726282270551,1852.42,0.00012173,2]
[338112287,1726282318790,250.0,0.00012167,2]
[338112288,1726282384881,563.0,0.00012167,2]
[338112289,1726282552857,164.16,0.00010241,2]
[338112290,1726282553073,164.16,0.00012504,2]
[338112291,1726282615799,23900.0,0.00012162,2]
[338112292,1726282670170,1000.0,0.00012151,2]
[338112293,1726282715304,3305.98,0.00012151,2]
[338112294,1726282721307,162.24,0.00012156,2]
[338112295,1726282721725,162.24,0.00012171,2]
[338112296,1726282721938,162.24,0.00012186,2]
[338112297,1726282722141,162.24,0.00012201,2]
[338112298,1726282722367,162.24,0.00012216,2]
[338112299,1726282773943,152.13,0.00010959,2]
[338112300,1726282807530,9545.347252,0.00012581,2]
[338112301,1726282809014,200.02,0.00012042,2]
[338112302,1726282851358,356.77,0.000125,2]
[338112303,1726282881099,250.0,0.00011996,2]
[338112305,1726283061931,155.52,0.00010043,2]
[338112306,1726283062187,155.52,0.00012433,2]
[338112307,1726283104013,150.0,0.00012403,2]
[338112308,1726283113163,150.0,0.00012403,2]
[338112309,1726283121750,150.0,0.00012626,2]
[338112310,1726283147113,-150.0,0.00018281,120]
[338112311,1726283147184,-150.0,0.00023539,120]
[338112312,1726283147227,-5951.0,0.00024657,60]
[338112313,1726283147270,-441.390226,0.00024678,120]
[338112314,1726283147315,-5951.0,0.00024794,60]
[338112315,1726283147357,-5951.0,0.00024931,60]
[338112316,1726283147401,-151.11067112,0.00025,60]
[338112317,1726283147442,-165.37524045,0.00025,120]
[338112318,1726283147485,-5951.0,0.00025068,60]
[338112319,1726283147531,-5951.0,0.00025205,60]
[338112320,1726283147575,-5951.0,0.00025342,60]
[338112321,1726283147620,-4145.06639882,0.00025479,60]
[338112323,1726283180559,-215.834201,0.00026678,120]
[338112324,1726283180604,-150.8024983,0.00027,120]
[338112325,1726283180642,-1000.0,0.00027,120]